[Event "9th RTU Open 2019"]
[Site "Riga"]
[Date "2019.08.08"]
[Round "5.15"]
[White "Gokerkan, Cem Kaan"]
[Black "Wagner, Dennis"]
[Result "1/2-1/2"]
[ECO "C54"]
[WhiteElo "2415"]
[BlackElo "2579"]
[Annotator "ChessBase"]
[PlyCount "75"]
[EventDate "2019.08.05"]
[EventType "swiss"]
[EventCountry "LAT"]
[SourceTitle "playchess.com"]
[Source "ChessBase"]
[SourceQuality "1"]
[TimeControl "5400+30"]

1. e4 {[%emt 0:02:12]} e5 {[%emt 0:00:00]} 2. Nf3 {[%emt 0:00:09]} Nc6 {[%emt 0:00:00]} 3. Bc4 {[%emt 0:00:23]} Bc5 {[%emt 0:00:00]} 4. c3 {[%emt 0:00:13]} Nf6 {[%emt 0:00:00]} 5. d3 {[%emt 0:00:04]} d6 {[%emt 0:00:00]} 6. O-O {[%emt 0:01:11]} a6 {[%emt 0:03:00]} 7. a4 {[%emt 0:01:26]} h6 {[%emt 0:02:37]} 8. h3 {[%emt 0:09:07]} Ba7 {[%emt 0:07:55]} 9. Be3 {[%emt 0:09:22]} Bxe3 {[%emt 0:00:25]} 10. fxe3 {[%emt 0:00:02]} O-O {[%emt 0:05:33]} 11. Nbd2 {[%emt 0:05:19]} Ne7 {[%emt 0:17:50]} 12. Nh4 {[%emt 0:07:35]} d5 {[%emt 0:00:19]} 13. exd5 {[%emt 0:21:42]} Nexd5 {[%emt 0:00:14]} 14. Qe2 {[%emt 0:07:33]} c6 {[%emt 0:08:15]} 15. a5 {[%emt 0:07:25]} b5 {[%emt 0:05:45]} 16. Bb3 {[%emt 0:02:36]} Be6 {[%emt 0:07:45]} 17. d4 {[%emt 0:06:28]} exd4 {[%emt 0:08:59]} 18. exd4 {[%emt 0:00:31]} Re8 {[%emt 0:00:41]} 19. Qf2 {[%emt 0:00:21]} Ne3 {[%emt 0:00:48]} 20. Rfe1 {[%emt 0:01:50]} Bxb3 {[%emt 0:00:19]} 21. Nxb3 {[%emt 0:00:41]} Ne4 {[%emt 0:05:48]} 22. Qxe3 {[%emt 0:00:38]} Qxh4 {[%emt 0:00:05]} 23. Nc5 {[%emt 0:02:06]} Nxc5 {[%emt 0:01:37]} 24. Qxe8+ {[%emt 0:00:04]} Rxe8 {[%emt 0:00:04]} 25. Rxe8+ {[%emt 0:00:02]} Kh7 {[%emt 0:00:07]} 26. dxc5 {[%emt 0:00:03]} Qc4 {[%emt 0:02:03]} 27. Kh1 {[%emt 0:08:40]} Qxc5 {[%emt 0:00:29]} 28. Ra8 {[%emt 0:00:48]} Qf2 {[%emt 0:00:16]} 29. b4 {[%emt 0:00:15]} Qb2 {[%emt 0:00:52]} 30. Rf1 {[%emt 0:00:01]} Qxc3 {[%emt 0:00:14]} 31. Rxa6 {[%emt 0:00:09]} Qxb4 {[%emt 0:00:58]} 32. Rxc6 {[%emt 0:00:09]} Qxa5 {[%emt 0:00:11]} 33. Rxf7 {[%emt 0:00:47]} Qe1+ {[%emt 0:04:40]} 34. Kh2 {[%emt 0:00:17]} Qe8 {[%emt 0:01:41]} 35. Rcc7 {[%emt 0:01:46]} Qe5+ {[%emt 0:00:07]} 36. Kh1 {[%emt 0:00:25]} b4 {[%emt 0:00:23]} 37. Rb7 {[%emt 0:00:52]} h5 {[%emt 0:03:20]} 38. Rb6 {[%emt 0:01:51]} 1/2-1/2

[Event "9th RTU Open 2019"]
[Site "Riga"]
[Date "2019.08.08"]
[Round "5.16"]
[White "Lalith Babu M R"]
[Black "Nesteretz, Anatoliy"]
[Result "1-0"]
[ECO "D47"]
[WhiteElo "2580"]
[BlackElo "2387"]
[Annotator "ChessBase"]
[PlyCount "59"]
[EventDate "2019.08.05"]
[EventType "swiss"]
[EventCountry "LAT"]
[SourceTitle "playchess.com"]
[Source "ChessBase"]
[SourceQuality "1"]
[TimeControl "5400+30"]

1. d4 {[%emt 0:00:00]} Nf6 {[%emt 0:00:00]} 2. c4 {[%emt 0:00:00]} e6 {[%emt 0:00:05]} 3. Nf3 {[%emt 0:00:05]} d5 {[%emt 0:00:16]} 4. Nc3 {[%emt 0:00:06]} c6 {[%emt 0:00:04]} 5. e3 {[%emt 0:00:08]} Nbd7 {[%emt 0:00:29]} 6. Bd3 {[%emt 0:00:07]} dxc4 {[%emt 0:01:43]} 7. Bxc4 {[%emt 0:00:06]} b5 {[%emt 0:00:08]} 8. Bd3 {[%emt 0:00:04]} Bb7 {[%emt 0:01:48]} 9. e4 {[%emt 0:00:06]} b4 {[%emt 0:06:20]} 10. Na4 {[%emt 0:00:09]} c5 {[%emt 0:00:19]} 11. e5 {[%emt 0:00:06]} Nd5 {[%emt 0:00:15]} 12. O-O {[%emt 0:00:48]} cxd4 {[%emt 0:02:38]} 13. Nxd4 {[%emt 0:00:54]} g6 {[%emt 0:09:40]} 14. Qg4 {[%emt 0:02:03]} Bg7 {[%emt 0:20:32]} 15. Bg5 {[%emt 0:02:04]} Nxe5 {[%emt 0:08:29]} 16. Nxe6 {[%emt 0:04:03]} Nxg4 {[%emt 0:07:12]} 17. Bb5+ {[%emt 0:00:19]} Qd7 {[%emt 0:00:04]} 18. Nxg7+ {[%emt 0:00:30]} Kf8 {[%emt 0:00:04]} 19. Bxd7 {[%emt 0:00:06]} h6 {[%emt 0:04:25]} 20. Bxg4 {[%emt 0:05:07]} hxg5 {[%emt 0:00:10]} 21. Nc5 {[%emt 0:00:05]} Nf6 {[%emt 0:01:33]} 22. Nge6+ {[%emt 0:00:31]} fxe6 {[%emt 0:00:08]} 23. Bxe6 {[%emt 0:00:06]} Re8 {[%emt 0:04:11]} 24. Rad1 {[%emt 0:06:10]} Rh7 {[%emt 0:04:32]} 25. f4 {[%emt 0:00:39]} g4 {[%emt 0:05:34]} 26. f5 {[%emt 0:00:12]} Rc7 {[%emt 0:01:46]} 27. fxg6 {[%emt 0:02:51]} Kg7 {[%emt 0:03:50]} 28. Bf7 {[%emt 0:01:28]} Re2 {[%emt 0:02:00]} 29. Ne6+ {[%emt 0:00:12]} Kh6 {[%emt 0:00:33]} 30. Rxf6 {[%emt 0:00:18]} 1-0

[Event "9th RTU Open 2019"]
[Site "Riga"]
[Date "2019.08.08"]
[Round "5.17"]
[White "Gretarsson, Helgi Ass"]
[Black "Gukesh D"]
[Result "0-1"]
[ECO "A50"]
[WhiteElo "2412"]
[BlackElo "2520"]
[Annotator "ChessBase"]
[PlyCount "80"]
[EventDate "2019.08.05"]
[EventType "swiss"]
[EventCountry "LAT"]
[SourceTitle "playchess.com"]
[Source "ChessBase"]
[SourceQuality "1"]
[TimeControl "5400+30"]

1. d4 {[%emt 0:00:00]} Nf6 {[%emt 0:00:15]} 2. c4 {[%emt 0:00:00]} b6 {[%emt 0:00:50]} 3. f3 {[%emt 0:01:16]} Nc6 {[%emt 0:00:50]} 4. Nc3 {[%emt 0:04:29]} e5 {[%emt 0:01:19]} 5. d5 {[%emt 0:03:39]} Ne7 {[%emt 0:00:08]} 6. e4 {[%emt 0:00:25]} Ng6 {[%emt 0:00:29]} 7. Be3 {[%emt 0:00:13]} Bc5 {[%emt 0:00:39]} 8. Qd2 {[%emt 0:03:01]} d6 {[%emt 0:03:34]} 9. Nge2 {[%emt 0:09:41]} a5 {[%emt 0:16:00]} 10. h4 {[%emt 0:24:59]} Ba6 {[%emt 0:10:06]} 11. h5 {[%emt 0:06:20]} Ne7 {[%emt 0:01:21]} 12. b3 {[%emt 0:00:19]} Nd7 {[%emt 0:05:46]} 13. g4 {[%emt 0:06:04]} a4 {[%emt 0:06:08]} 14. Nxa4 {[%emt 0:02:40]} Bxe3 {[%emt 0:00:26]} 15. Qxe3 {[%emt 0:00:32]} Bxc4 {[%emt 0:00:10]} 16. Nec3 {[%emt 0:02:04]} Bxf1 {[%emt 0:00:25]} 17. Kxf1 {[%emt 0:00:01]} O-O {[%emt 0:09:23]} 18. Kg2 {[%emt 0:00:42]} c6 {[%emt 0:00:27]} 19. dxc6 {[%emt 0:14:44]} Nxc6 {[%emt 0:00:15]} 20. Nb5 {[%emt 0:00:03]} Nc5 {[%emt 0:05:12]} 21. Nac3 {[%emt 0:01:02]} Nb4 {[%emt 0:06:45]} 22. Rad1 {[%emt 0:00:28]} Ne6 {[%emt 0:06:40]} 23. Rxd6 {[%emt 0:03:13]} Nf4+ {[%emt 0:00:19]} 24. Kf1 {[%emt 0:06:02]} Qe7 {[%emt 0:05:22]} 25. Rh2 {[%emt 0:02:36]} Rfd8 {[%emt 0:11:52]} 26. Rxd8+ {[%emt 0:00:15]} Rxd8 {[%emt 0:00:09]} 27. a3 {[%emt 0:01:18]} Rd3 {[%emt 0:06:10]} 28. Qxb6 {[%emt 0:00:07]} Rxf3+ {[%emt 0:02:17]} 29. Ke1 {[%emt 0:00:02]} Nbd3+ {[%emt 0:00:36]} 30. Kd2 {[%emt 0:00:18]} h6 {[%emt 0:00:17]} 31. Kc2 {[%emt 0:00:34]} Qd7 {[%emt 0:00:39]} 32. Qg1 {[%emt 0:08:10]} Nh3 {[%emt 0:00:36]} 33. Qd1 {[%emt 0:00:11]} Nhf2 {[%emt 0:00:19]} 34. Qe2 {[%emt 0:00:39]} Nxg4 {[%emt 0:00:18]} 35. Rg2 {[%emt 0:00:40]} Ne1+ {[%emt 0:00:53]} 36. Kb2 {[%emt 0:00:33]} Nd3+ {[%emt 0:00:13]} 37. Kb1 {[%emt 0:00:14]} Rf4 {[%emt 0:00:48]} 38. Rg3 {[%emt 0:00:45]} Nc5 {[%emt 0:00:12]} 39. b4 {[%emt 0:00:30]} Nb3 {[%emt 0:00:19]} 40. Nd5 {[%emt 0:00:19]} Rxe4 {[%emt 0:00:06]} 0-1

[Event "9th RTU Open 2019"]
[Site "Riga"]
[Date "2019.08.08"]
[Round "5.18"]
[White "Keinanen, Toivo"]
[Black "Stany, G.A."]
[Result "1-0"]
[ECO "D90"]
[WhiteElo "2386"]
[BlackElo "2525"]
[Annotator "ChessBase"]
[PlyCount "67"]
[EventDate "2019.08.05"]
[EventType "swiss"]
[EventCountry "LAT"]
[SourceTitle "playchess.com"]
[Source "ChessBase"]
[SourceQuality "1"]
[TimeControl "5400+30"]

1. d4 {[%emt 0:00:00]} Nf6 {[%emt 0:00:00]} 2. c4 {[%emt 0:00:00]} g6 {[%emt 0:00:00]} 3. Nc3 {[%emt 0:00:00]} d5 {[%emt 0:00:00]} 4. Nf3 {[%emt 0:00:00]} Bg7 {[%emt 0:00:00]} 5. h4 {[%emt 0:00:01]} c6 {[%emt 0:01:04]} 6. cxd5 {[%emt 0:00:13]} cxd5 {[%emt 0:00:57]} 7. Bf4 {[%emt 0:00:05]} Nc6 {[%emt 0:00:39]} 8. e3 {[%emt 0:00:01]} O-O {[%emt 0:11:42]} 9. Qb3 {[%emt 0:00:39]} Na5 {[%emt 0:03:31]} 10. Qb4 {[%emt 0:00:02]} b6 {[%emt 0:16:01]} 11. Ne5 {[%emt 0:04:36]} Ng4 {[%emt 0:04:22]} 12. Nxg4 {[%emt 0:08:12]} Bxg4 {[%emt 0:00:23]} 13. f3 {[%emt 0:00:42]} Be6 {[%emt 0:13:29]} 14. h5 {[%emt 0:02:52]} f6 {[%emt 0:00:53]} 15. hxg6 {[%emt 0:07:51]} hxg6 {[%emt 0:00:09]} 16. Bd3 {[%emt 0:00:31]} Bf7 {[%emt 0:03:13]} 17. O-O-O {[%emt 0:11:14]} Qd7 {[%emt 0:16:09]} 18. Rh2 {[%emt 0:07:21]} Nc4 {[%emt 0:06:48]} 19. Rdh1 {[%emt 0:12:12]} Rfc8 {[%emt 0:01:08]} 20. Bh6 {[%emt 0:03:13]} f5 {[%emt 0:00:10]} 21. Bxg7 {[%emt 0:04:22]} Kxg7 {[%emt 0:00:06]} 22. Rh7+ {[%emt 0:01:24]} Kf8 {[%emt 0:03:09]} 23. g4 {[%emt 0:06:34]} Nxe3 {[%emt 0:08:50]} 24. gxf5 {[%emt 0:07:44]} Nxf5 {[%emt 0:00:17]} 25. Kb1 {[%emt 0:02:10]} Qd6 {[%emt 0:03:33]} 26. Rh8+ {[%emt 0:02:28]} Kg7 {[%emt 0:00:22]} 27. R8h7+ {[%emt 0:00:01]} Kf6 {[%emt 0:02:44]} 28. Qb3 {[%emt 0:01:56]} Nxd4 {[%emt 0:01:26]} 29. Ne4+ {[%emt 0:02:31]} Ke6 {[%emt 0:01:55]} 30. Ng5+ {[%emt 0:03:06]} Kf6 {[%emt 0:00:32]} 31. Rxf7+ {[%emt 0:01:24]} Kxg5 {[%emt 0:00:06]} 32. Qd1 {[%emt 0:00:08]} Nf5 {[%emt 0:00:39]} 33. Qd2+ {[%emt 0:01:15]} Qf4 {[%emt 0:00:11]} 34. Rg1+ {[%emt 0:00:17]} 1-0

[Event "9th RTU Open 2019"]
[Site "Riga"]
[Date "2019.08.08"]
[Round "5.19"]
[White "Galchenko, Matvey"]
[Black "Vishnu Prasanna. V"]
[Result "1/2-1/2"]
[ECO "A07"]
[WhiteElo "2383"]
[BlackElo "2505"]
[Annotator "ChessBase"]
[PlyCount "79"]
[EventDate "2019.08.05"]
[EventType "swiss"]
[EventCountry "LAT"]
[SourceTitle "playchess.com"]
[Source "ChessBase"]
[SourceQuality "1"]
[TimeControl "5400+30"]

1. Nf3 {[%emt 0:10:54]} d5 {[%emt 0:00:00]} 2. g3 {[%emt 0:00:18]} Nd7 {[%emt 0:01:09]} 3. Bg2 {[%emt 0:03:08]} e5 {[%emt 0:00:24]} 4. d3 {[%emt 0:00:28]} Bd6 {[%emt 0:00:57]} 5. O-O {[%emt 0:01:59]} Ne7 {[%emt 0:00:31]} 6. e4 {[%emt 0:03:20]} c6 {[%emt 0:03:40]} 7. exd5 {[%emt 0:09:09]} cxd5 {[%emt 0:00:08]} 8. Re1 {[%emt 0:00:43]} O-O {[%emt 0:00:48]} 9. c4 {[%emt 0:01:08]} d4 {[%emt 0:00:32]} 10. Nbd2 {[%emt 0:00:23]} Nc6 {[%emt 0:03:35]} 11. a3 {[%emt 0:01:37]} Nc5 {[%emt 0:05:07]} 12. Ne4 {[%emt 0:01:52]} Nxe4 {[%emt 0:00:08]} 13. Rxe4 {[%emt 0:00:14]} a5 {[%emt 0:00:49]} 14. Rb1 {[%emt 0:01:15]} Re8 {[%emt 0:08:48]} 15. Re1 {[%emt 0:02:02]} Bg4 {[%emt 0:02:38]} 16. h3 {[%emt 0:05:12]} Bh5 {[%emt 0:02:40]} 17. Qc2 {[%emt 0:01:06]} Bf8 {[%emt 0:08:07]} 18. Bd2 {[%emt 0:15:59]} e4 {[%emt 0:09:30]} 19. dxe4 {[%emt 0:01:53]} d3 {[%emt 0:00:11]} 20. Qc3 {[%emt 0:02:04]} Bxf3 {[%emt 0:03:05]} 21. Bxf3 {[%emt 0:00:03]} Ne5 {[%emt 0:00:13]} 22. Bg2 {[%emt 0:02:32]} Rc8 {[%emt 0:03:58]} 23. Qxa5 {[%emt 0:06:42]} Qxa5 {[%emt 0:00:37]} 24. Bxa5 {[%emt 0:00:07]} Nxc4 {[%emt 0:00:18]} 25. Bc3 {[%emt 0:02:02]} Nxa3 {[%emt 0:00:32]} 26. Rbc1 {[%emt 0:09:11]} b5 {[%emt 0:11:13]} 27. Red1 {[%emt 0:05:41]} b4 {[%emt 0:10:50]} 28. Bxb4 {[%emt 0:09:35]} Rxc1 {[%emt 0:00:52]} 29. Rxc1 {[%emt 0:00:04]} Bxb4 {[%emt 0:00:17]} 30. bxa3 {[%emt 0:00:01]} d2 {[%emt 0:04:09]} 31. Rd1 {[%emt 0:00:00]} Bc3 {[%emt 0:00:08]} 32. Rb1 {[%emt 0:03:22]} f5 {[%emt 0:01:52]} 33. Kf1 {[%emt 0:00:02]} Bb2 {[%emt 0:04:25]} 34. Ke2 {[%emt 0:00:17]} Bc1 {[%emt 0:00:07]} 35. Rb3 {[%emt 0:00:57]} fxe4 {[%emt 0:00:15]} 36. Kd1 {[%emt 0:00:43]} Rf8 {[%emt 0:02:21]} 37. Bxe4 {[%emt 0:00:05]} Rxf2 {[%emt 0:00:20]} 38. Rf3 {[%emt 0:01:00]} Rxf3 {[%emt 0:00:07]} 39. Bxf3 {[%emt 0:00:03]} Bxa3 {[%emt 0:00:09]} 40. Kxd2 {[%emt 0:00:05]} 1/2-1/2

[Event "9th RTU Open 2019"]
[Site "Riga"]
[Date "2019.08.08"]
[Round "5.20"]
[White "Hedman, Erik"]
[Black "Stremavicius, Titas"]
[Result "0-1"]
[ECO "A81"]
[WhiteElo "2373"]
[BlackElo "2474"]
[Annotator "ChessBase"]
[PlyCount "72"]
[EventDate "2019.08.05"]
[EventType "swiss"]
[EventCountry "LAT"]
[SourceTitle "playchess.com"]
[Source "ChessBase"]
[SourceQuality "1"]
[TimeControl "5400+30"]

1. d4 {[%emt 0:03:20]} f5 {[%emt 0:00:23]} 2. g3 {[%emt 0:00:33]} Nf6 {[%emt 0:00:05]} 3. Bg2 {[%emt 0:00:03]} g6 {[%emt 0:00:08]} 4. Nf3 {[%emt 0:00:15]} Bg7 {[%emt 0:00:07]} 5. O-O {[%emt 0:00:10]} O-O {[%emt 0:00:07]} 6. b3 {[%emt 0:00:04]} b6 {[%emt 0:00:16]} 7. Ne5 {[%emt 0:03:47]} c6 {[%emt 0:00:24]} 8. Bb2 {[%emt 0:00:11]} Bb7 {[%emt 0:00:43]} 9. Nd2 {[%emt 0:00:51]} d5 {[%emt 0:00:48]} 10. c4 {[%emt 0:06:35]} Nbd7 {[%emt 0:01:49]} 11. Nd3 {[%emt 0:00:49]} e6 {[%emt 0:01:29]} 12. a4 {[%emt 0:05:53]} a5 {[%emt 0:01:46]} 13. Ba3 {[%emt 0:07:23]} Re8 {[%emt 0:01:07]} 14. Rc1 {[%emt 0:00:05]} Ne4 {[%emt 0:12:01]} 15. Nf3 {[%emt 0:05:06]} dxc4 {[%emt 0:05:51]} 16. bxc4 {[%emt 0:06:48]} c5 {[%emt 0:02:26]} 17. e3 {[%emt 0:00:05]} Qc7 {[%emt 0:05:52]} 18. Bb2 {[%emt 0:11:27]} Rac8 {[%emt 0:02:37]} 19. Re1 {[%emt 0:11:01]} Ba6 {[%emt 0:13:19]} 20. Nd2 {[%emt 0:02:31]} Nxd2 {[%emt 0:05:57]} 21. Qxd2 {[%emt 0:00:01]} cxd4 {[%emt 0:00:15]} 22. Bxd4 {[%emt 0:03:53]} Bxd4 {[%emt 0:12:28]} 23. exd4 {[%emt 0:01:04]} Qd6 {[%emt 0:00:03]} 24. Nb2 {[%emt 0:01:16]} e5 {[%emt 0:00:42]} 25. Bd5+ {[%emt 0:01:07]} Kg7 {[%emt 0:00:07]} 26. dxe5 {[%emt 0:03:00]} Nxe5 {[%emt 0:02:23]} 27. Qd4 {[%emt 0:03:28]} Qf6 {[%emt 0:00:31]} 28. Kg2 {[%emt 0:00:30]} Nd7 {[%emt 0:04:03]} 29. Qd2 {[%emt 0:00:56]} Nc5 {[%emt 0:00:31]} 30. Rxe8 {[%emt 0:00:48]} Rxe8 {[%emt 0:00:01]} 31. Re1 {[%emt 0:00:04]} Rxe1 {[%emt 0:02:46]} 32. Qxe1 {[%emt 0:01:17]} Bc8 {[%emt 0:00:11]} 33. Nd1 {[%emt 0:02:57]} Bd7 {[%emt 0:00:35]} 34. Nc3 {[%emt 0:00:55]} Nxa4 {[%emt 0:02:37]} 35. Nxa4 {[%emt 0:01:17]} Bxa4 {[%emt 0:00:02]} 36. c5 {[%emt 0:01:28]} Bc6 {[%emt 0:00:37]} 0-1

[Event "9th RTU Open 2019"]
[Site "Riga"]
[Date "2019.08.08"]
[Round "5.21"]
[White "Jurcik, Marian"]
[Black "Larkin, Vladyslav"]
[Result "1/2-1/2"]
[ECO "D15"]
[WhiteElo "2501"]
[BlackElo "2385"]
[Annotator "ChessBase"]
[PlyCount "45"]
[EventDate "2019.08.05"]
[EventType "swiss"]
[EventCountry "LAT"]
[SourceTitle "playchess.com"]
[Source "ChessBase"]
[SourceQuality "1"]
[TimeControl "5400+30"]

1. d4 {[%emt 0:01:05]} d5 {[%emt 0:07:29]} 2. c4 {[%emt 0:00:34]} c6 {[%emt 0:00:06]} 3. Nf3 {[%emt 0:00:31]} Nf6 {[%emt 0:00:06]} 4. Nc3 {[%emt 0:02:25]} Bf5 {[%emt 0:01:25]} 5. cxd5 {[%emt 0:01:35]} Nxd5 {[%emt 0:00:12]} 6. Nd2 {[%emt 0:01:54]} e5 {[%emt 0:19:35]} 7. e4 {[%emt 0:02:03]} Nxc3 {[%emt 0:00:05]} 8. bxc3 {[%emt 0:00:11]} Bg6 {[%emt 0:01:10]} 9. dxe5 {[%emt 0:01:15]} Qa5 {[%emt 0:19:15]} 10. Qb3 {[%emt 0:15:17]} Nd7 {[%emt 0:00:19]} 11. e6 {[%emt 0:14:08]} Nc5 {[%emt 0:00:30]} 12. exf7+ {[%emt 0:00:22]} Bxf7 {[%emt 0:00:02]} 13. Qc2 {[%emt 0:01:41]} Qa4 {[%emt 0:01:27]} 14. Qb1 {[%emt 0:19:21]} Bd6 {[%emt 0:05:21]} 15. Be2 {[%emt 0:03:04]} O-O-O {[%emt 0:03:40]} 16. O-O {[%emt 0:02:20]} Rhe8 {[%emt 0:11:16]} 17. f3 {[%emt 0:07:43]} Be5 {[%emt 0:01:28]} 18. Qb2 {[%emt 0:01:21]} Qa5 {[%emt 0:05:06]} 19. Nb3 {[%emt 0:07:33]} Nxb3 {[%emt 0:00:34]} 20. axb3 {[%emt 0:00:02]} Qc5+ {[%emt 0:00:05]} 21. Kh1 {[%emt 0:00:09]} Bxc3 {[%emt 0:00:09]} 22. Qa3 {[%emt 0:00:22]} Qxa3 {[%emt 0:10:42]} 23. Rxa3 {[%emt 0:00:22]} 1/2-1/2

[Event "9th RTU Open 2019"]
[Site "Riga"]
[Date "2019.08.08"]
[Round "5.22"]
[White "Zanan, Evgeny"]
[Black "Narva, Mai"]
[Result "1-0"]
[ECO "D85"]
[WhiteElo "2505"]
[BlackElo "2358"]
[Annotator "ChessBase"]
[PlyCount "113"]
[EventDate "2019.08.05"]
[EventType "swiss"]
[EventCountry "LAT"]
[SourceTitle "playchess.com"]
[Source "ChessBase"]
[SourceQuality "1"]
[TimeControl "5400+30"]

1. d4 {[%emt 0:01:40]} Nf6 {[%emt 0:00:00]} 2. c4 {[%emt 0:00:18]} g6 {[%emt 0:00:00]} 3. Nc3 {[%emt 0:00:22]} d5 {[%emt 0:00:14]} 4. cxd5 {[%emt 0:00:18]} Nxd5 {[%emt 0:00:09]} 5. e4 {[%emt 0:00:04]} Nxc3 {[%emt 0:00:12]} 6. bxc3 {[%emt 0:00:05]} Bg7 {[%emt 0:00:16]} 7. Be3 {[%emt 0:00:05]} c5 {[%emt 0:00:16]} 8. Qd2 {[%emt 0:05:31]} Qa5 {[%emt 0:04:30]} 9. Rc1 {[%emt 0:08:13]} O-O {[%emt 0:10:22]} 10. Nf3 {[%emt 0:00:33]} e6 {[%emt 0:14:57]} 11. Be2 {[%emt 0:16:43]} Rd8 {[%emt 0:24:23]} 12. Bg5 {[%emt 0:03:31]} f6 {[%emt 0:03:15]} 13. Be3 {[%emt 0:01:57]} Nc6 {[%emt 0:03:59]} 14. Rd1 {[%emt 0:07:47]} b5 {[%emt 0:07:53]} 15. O-O {[%emt 0:02:13]} f5 {[%emt 0:04:12]} 16. exf5 {[%emt 0:06:15]} exf5 {[%emt 0:02:51]} 17. Qb2 {[%emt 0:02:50]} c4 {[%emt 0:03:44]} 18. a4 {[%emt 0:02:20]} a6 {[%emt 0:02:01]} 19. axb5 {[%emt 0:01:40]} Qxb5 {[%emt 0:00:18]} 20. Qa2 {[%emt 0:11:50]} Na5 {[%emt 0:04:02]} 21. Rb1 {[%emt 0:10:34]} Nb3 {[%emt 0:01:45]} 22. Nd2 {[%emt 0:00:53]} Be6 {[%emt 0:01:43]} 23. Bxc4 {[%emt 0:00:54]} Bxc4 {[%emt 0:00:26]} 24. Nxc4 {[%emt 0:00:09]} Qxc4 {[%emt 0:00:18]} 25. Qxb3 {[%emt 0:00:05]} Rac8 {[%emt 0:00:47]} 26. g3 {[%emt 0:03:46]} a5 {[%emt 0:04:51]} 27. Rfc1 {[%emt 0:01:43]} a4 {[%emt 0:03:05]} 28. Qxc4+ {[%emt 0:00:18]} Rxc4 {[%emt 0:00:06]} 29. Kf1 {[%emt 0:01:46]} Bf8 {[%emt 0:02:35]} 30. Ke2 {[%emt 0:00:56]} Rdc8 {[%emt 0:01:17]} 31. Kd3 {[%emt 0:00:56]} a3 {[%emt 0:00:27]} 32. Ra1 {[%emt 0:00:44]} Kf7 {[%emt 0:00:26]} 33. Bd2 {[%emt 0:00:53]} Bd6 {[%emt 0:00:26]} 34. Rcb1 {[%emt 0:00:28]} R8c7 {[%emt 0:00:40]} 35. Rb6 {[%emt 0:01:18]} Be7 {[%emt 0:00:17]} 36. Ra6 {[%emt 0:01:48]} g5 {[%emt 0:00:45]} 37. Rb1 {[%emt 0:00:53]} h5 {[%emt 0:00:27]} 38. Rb5 {[%emt 0:01:21]} f4 {[%emt 0:00:25]} 39. gxf4 {[%emt 0:00:17]} gxf4 {[%emt 0:00:14]} 40. Rxh5 {[%emt 0:00:39]} R4c6 {[%emt 0:00:30]} 41. Rxc6 {[%emt 0:01:07]} Rxc6 {[%emt 0:00:17]} 42. Ra5 {[%emt 0:00:11]} f3 {[%emt 0:00:29]} 43. c4 {[%emt 0:02:45]} Rb6 {[%emt 0:00:26]} 44. c5 {[%emt 0:00:57]} Rb3+ {[%emt 0:00:12]} 45. Ke4 {[%emt 0:02:06]} Rb2 {[%emt 0:01:19]} 46. Be3 {[%emt 0:00:09]} a2 {[%emt 0:00:23]} 47. Kxf3 {[%emt 0:00:28]} Ke6 {[%emt 0:00:33]} 48. Ke4 {[%emt 0:00:05]} Bf6 {[%emt 0:00:12]} 49. Ra6+ {[%emt 0:00:24]} Kd7 {[%emt 0:00:12]} 50. Kd5 {[%emt 0:00:29]} Kc7 {[%emt 0:00:48]} 51. c6 {[%emt 0:01:05]} Rb5+ {[%emt 0:00:36]} 52. Ke6 {[%emt 0:00:45]} Rb6 {[%emt 0:00:17]} 53. Rxa2 {[%emt 0:00:23]} Rxc6+ {[%emt 0:00:09]} 54. Kf5 {[%emt 0:00:04]} Bh4 {[%emt 0:00:39]} 55. Ra7+ {[%emt 0:00:17]} Kc8 {[%emt 0:00:32]} 56. Rh7 {[%emt 0:00:40]} Bd8 {[%emt 0:00:14]} 57. h4 {[%emt 0:00:24]} 1-0